fUSD/lending_fUSD_20260502
["ID","MTS","AMOUNT","RATE_DAILY","PERIOD"]
[421453834,1777687840000,-10215.8145739,0.00016678,2]
[421453833,1777687840000,-47389.7119387,0.00016678,2]
[421453872,1777687840000,-500.0,0.00016951,2]
[421453832,1777687840000,-532.50328,0.00016677,2]
[421453840,1777687840000,-647.58872,0.00016678,2]
[421453823,1777687840000,-266.269748,0.00016677,2]
[421453830,1777687840000,-532.50328,0.00016677,2]
[421453806,1777687840000,-360.40666761,0.00016486,2]
[421453820,1777687840000,-150.0,0.0001662,2]
[421453853,1777687840000,-647.58872,0.0001672,2]
[421453804,1777687840000,-909908.891777,0.00016478,2]
[421453807,1777687840000,-500.0,0.00016554,2]
[421453805,1777687840000,-152.0,0.00016481,7]
[421453808,1777687840000,-1003.26973193,0.00016577,2]
[421453809,1777687840000,-169.23514681,0.00016578,2]
[421453810,1777687840000,-33585.7537,0.00016578,2]
[421453813,1777687840000,-444.922,0.000166,2]
[421453812,1777687840000,-416.0,0.00016594,2]
[421453811,1777687840000,-6055.185,0.00016594,2]
[421453814,1777687840000,-168.54457539,0.000166,2]
[421453815,1777687840000,-162.41,0.000166,3]
[421453816,1777687840000,-150.0,0.0001662,2]
[421453817,1777687840000,-150.0,0.0001662,2]
[421453818,1777687840000,-150.0,0.0001662,2]
[421453819,1777687840000,-150.41028834,0.0001662,2]
[421453843,1777687840000,-532.50328,0.00016678,2]
[421453835,1777687840000,-809.6079892,0.00016678,2]
[421453860,1777687840000,-647.58872,0.00016721,2]
[421453844,1777687840000,-532.50328,0.00016678,2]
[421453845,1777687840000,-532.50328,0.00016678,2]
[421453867,1777687840000,-532.50328,0.00016721,2]
[421453836,1777687840000,-152.028088,0.00016678,2]
[421453839,1777687840000,-647.58872,0.00016678,2]
[421453858,1777687840000,-532.50328,0.0001672,2]
[421453868,1777687840000,-200.0,0.00016721,2]
[421453846,1777687840000,-532.50328,0.00016678,2]
[421453838,1777687840000,-282.198735,0.00016678,2]
[421453873,1777687840000,-350.0,0.00017,2]
[421453869,1777687840000,-2500.0,0.00016743,2]
[421453874,1777687840000,-2245.53874156,0.00017048,20]
[421453876,1777687840000,-2500.0,0.0001716,2]
[421453877,1777687840000,-2000.0,0.00017211,2]
[421453875,1777687840000,-162.38278084,0.00017109,2]
[421453850,1777687840000,-234.78487592,0.0001672,2]
[421453870,1777687840000,-200.24910972,0.00016768,2]
[421453864,1777687840000,-532.50328,0.00016721,2]
[421453847,1777687840000,-200.0,0.00016686,2]
[421453849,1777687840000,-151.0,0.0001672,2]
[421453866,1777687840000,-532.50328,0.00016721,2]
[421453861,1777687840000,-647.58872,0.00016721,2]
[421453841,1777687840000,-647.58872,0.00016678,2]
[421453859,1777687840000,-151.0,0.00016721,2]
[421453851,1777687840000,-647.58872,0.0001672,2]
[421453848,1777687840000,-14174.09031308,0.0001672,2]
[421453855,1777687840000,-532.50328,0.0001672,2]
[421453862,1777687840000,-647.58872,0.00016721,2]
[421453856,1777687840000,-532.50328,0.0001672,2]
[421453865,1777687840000,-532.50328,0.00016721,2]
[421453863,1777687840000,-647.58872,0.00016721,2]
[421453837,1777687840000,-151.0,0.00016678,2]
[421453852,1777687840000,-647.58872,0.0001672,2]
[421453857,1777687840000,-532.50328,0.0001672,2]
[421453854,1777687840000,-647.58872,0.0001672,2]
[421453871,1777687840000,-200.0,0.00016888,2]
[421453891,1777687841000,-610.52,0.00017763,2]
[421453890,1777687841000,-155.447,0.00017761,2]
[421453885,1777687841000,-578.20924308,0.00017672,2]
[421453938,1777687841000,-1220.0,0.00019224,2]
[421453882,1777687841000,-459.0,0.00017662,2]
[421453892,1777687841000,-2000.0,0.00017771,2]
[421453893,1777687841000,-532.50328,0.00017771,2]
[421453927,1777687841000,-5800.0,0.00018686,2]
[421453921,1777687841000,-163.06201,0.00018545,2]
[421453888,1777687841000,-1240.2,0.00017726,14]
[421453909,1777687841000,-200.0,0.00018302,7]
[421453913,1777687841000,-200.0,0.00018302,7]
[421453889,1777687841000,-151.0,0.00017727,2]
[421453899,1777687841000,-151.0,0.000178,2]
[421453907,1777687841000,-200.0,0.00018302,7]
[421453933,1777687841000,-1097.33523006,0.00018695,2]
[421453901,1777687841000,-647.58872,0.000178,2]
[421453912,1777687841000,-200.0,0.00018302,7]
[421453878,1777687841000,-500.0,0.00017211,2]
[421453900,1777687841000,-647.58872,0.000178,2]
[421453915,1777687841000,-200.0,0.00018302,7]
[421453928,1777687841000,-503.05720837,0.00018694,2]
[421453906,1777687841000,-168.28,0.00018245,2]
[421453935,1777687841000,-400.0,0.00019,2]
[421453926,1777687841000,-5800.0,0.00018678,2]
[421453883,1777687841000,-1338.0,0.00017662,2]
[421453922,1777687841000,-163.06201,0.00018545,2]
[421453930,1777687841000,-5800.0,0.00018695,2]
[421453902,1777687841000,-647.58872,0.000178,2]
[421453920,1777687841000,-163.06201,0.00018545,2]
[421453936,1777687841000,-227.0,0.00019,2]
[421453894,1777687841000,-532.50328,0.00017771,2]
[421453887,1777687841000,-151.0,0.00017672,2]
[421453895,1777687841000,-532.50328,0.00017771,2]
[421453916,1777687841000,-300.0,0.00018302,7]
[421453896,1777687841000,-532.50328285,0.00017771,2]
[421453918,1777687841000,-200.0,0.00018397,2]
[421453881,1777687841000,-510.0,0.00017662,2]
[421453925,1777687841000,-5800.0,0.00018669,2]
[421453886,1777687841000,-816.96953611,0.00017672,2]
[421453929,1777687841000,-302.60699763,0.00018694,2]
[421453932,1777687841000,-5486.67615032,0.00018695,2]
[421453937,1777687841000,-610.52,0.00019095,2]
[421453897,1777687841000,-217.71918253,0.00017782,2]
[421453931,1777687841000,-5800.0,0.00018695,2]
[421453879,1777687841000,-503.5503318,0.00017225,2]
[421453880,1777687841000,-152.16821615,0.00017307,2]
[421453904,1777687841000,-352.32929852,0.00017941,5]
[421453908,1777687841000,-200.0,0.00018302,7]
[421453917,1777687841000,-216.0,0.00018387,2]
[421453919,1777687841000,-819.9,0.0001841,2]
[421453903,1777687841000,-647.588729,0.000178,2]
[421453898,1777687841000,-1449.94,0.000178,2]
[421453947,1777687841000,-1002.0,0.0002,2]
[421453910,1777687841000,-200.0,0.00018302,7]
[421453969,1777687841000,-5528.0,0.000207,5]
[421453973,1777687841000,-495.0,0.00021,2]
[421453972,1777687841000,-339.0,0.00021,2]
[421453976,1777687841000,-599.0,0.00021,2]
[421453955,1777687841000,-495.0,0.0002,2]
[421453952,1777687841000,-157.9681303,0.0002,2]
[421453962,1777687841000,-284.0,0.0002,2]
[421453961,1777687841000,-227.0,0.0002,2]
[421453975,1777687841000,-562.0,0.00021,2]
[421453979,1777687841000,-2601.0,0.00021,2]
[421453981,1777687841000,-200.0,0.00021132,2]
[421453980,1777687841000,-200.0,0.00021132,2]
[421453963,1777687841000,-2601.0,0.0002,2]
[421453978,1777687841000,-284.0,0.00021,2]
[421453970,1777687841000,-450.0,0.00021,2]
[421453965,1777687841000,-2000.0,0.00020013,2]
[421453974,1777687841000,-1722.0,0.00021,2]
[421453956,1777687841000,-1722.0,0.0002,2]
[421453971,1777687841000,-478.0,0.00021,2]
[421453984,1777687841000,-200.0,0.00021132,2]
[421453985,1777687841000,-200.0,0.00021132,2]
[421453986,1777687841000,-200.0,0.00021132,2]
[421453983,1777687841000,-200.0,0.00021132,2]
[421453905,1777687841000,-610.52,0.00018207,2]
[421453966,1777687841000,-500.0,0.00020013,2]
[421453951,1777687841000,-909.0,0.0002,2]
[421453960,1777687841000,-599.0,0.0002,2]
[421453945,1777687841000,-416.0,0.00019594,2]
[421453911,1777687841000,-200.0,0.00018302,7]
[421453950,1777687841000,-478.0,0.0002,2]
[421453923,1777687841000,-267.0,0.00018591,2]
[421453924,1777687841000,-610.52,0.00018651,2]
[421453934,1777687841000,-336.0,0.00018765,2]
[421453914,1777687841000,-200.0,0.00018302,7]
[421453940,1777687841000,-1351.0,0.00019234,2]
[421453939,1777687841000,-3534.0,0.00019234,2]
[421453943,1777687841000,-610.52,0.00019539,2]
[421453942,1777687841000,-1267.0,0.00019234,2]
[421453944,1777687841000,-6038.0,0.00019594,2]
[421453964,1777687841000,-176.47,0.0002,2]
[421453967,1777687841000,-819.9,0.00020381,2]
[421453941,1777687841000,-768.168,0.00019234,2]
[421453982,1777687841000,-200.0,0.00021132,2]
[421453946,1777687841000,-2000.0,0.00019745,2]
[421453953,1777687841000,-5360.0,0.0002,2]
[421453954,1777687841000,-339.0,0.0002,2]
[421453957,1777687841000,-1062.0,0.0002,2]
[421453958,1777687841000,-562.0,0.0002,2]
[421453968,1777687841000,-395.65018047,0.00020411,2]
[421453977,1777687841000,-227.0,0.00021,2]
[421453959,1777687841000,-163.05490145,0.0002,2]
[421453949,1777687841000,-811.0,0.0002,2]
[421453948,1777687841000,-919.0,0.0002,2]
[421454025,1777687842000,-288.66,0.00022503,2]
[421454022,1777687842000,-288.66,0.00022501,2]
[421454021,1777687842000,-288.66,0.00022501,2]
[421454023,1777687842000,-288.66,0.00022501,2]
[421454019,1777687842000,-288.66,0.00022501,2]
[421454017,1777687842000,-343.97289676,0.00022407,2]
[421454027,1777687842000,-288.66,0.00022503,2]
[421454028,1777687842000,-288.66,0.00022503,2]
[421454018,1777687842000,-288.66,0.00022501,2]
[421454032,1777687842000,-288.66,0.00022505,2]
[421454020,1777687842000,-288.66,0.00022501,2]
[421454030,1777687842000,-288.66,0.00022503,2]
[421454042,1777687842000,-1165.00000001,0.00023,2]
[421454035,1777687842000,-288.66,0.00022505,2]
[421454037,1777687842000,-288.66,0.00022505,2]
[421454038,1777687842000,-6038.0,0.00022594,2]
[421454029,1777687842000,-288.66,0.00022503,2]
[421454040,1777687842000,-2000.0,0.00022816,2]
[421454033,1777687842000,-288.66,0.00022505,2]
[421454039,1777687842000,-416.0,0.00022594,2]
[421454034,1777687842000,-288.66,0.00022505,2]
[421454024,1777687842000,-288.66,0.00022503,2]
[421454031,1777687842000,-288.74,0.00022505,2]
[421454041,1777687842000,-500.0,0.00022816,2]
[421454016,1777687842000,-343.97289676,0.00022407,2]
[421454036,1777687842000,-288.66,0.00022505,2]
[421453995,1777687842000,-250.0,0.00021616,3]
[421454004,1777687842000,-300.12387056,0.00021918,2]
[421453997,1777687842000,-250.0,0.00021616,3]
[421454048,1777687842000,-562.0,0.00023,2]
[421453994,1777687842000,-433.08,0.000215,2]
[421454007,1777687842000,-495.0,0.00022,2]
[421454003,1777687842000,-1000.0,0.00021918,2]
[421454014,1777687842000,-819.9,0.00022353,2]
[421453990,1777687842000,-166.69,0.00021179,2]
[421453992,1777687842000,-3939.53,0.000215,2]
[421453991,1777687842000,-3406.31,0.000215,2]
[421453996,1777687842000,-250.0,0.00021616,3]
[421454015,1777687842000,-343.97289677,0.00022407,2]
[421454002,1777687842000,-5000.0,0.00021918,2]
[421453989,1777687842000,-200.0,0.00021132,2]
[421454012,1777687842000,-284.0,0.00022,2]
[421453999,1777687842000,-250.0,0.00021616,3]
[421454010,1777687842000,-599.0,0.00022,2]
[421453987,1777687842000,-200.0,0.00021132,2]
[421454013,1777687842000,-2601.0,0.00022,2]
[421454006,1777687842000,-339.0,0.00022,2]
[421454001,1777687842000,-2000.0,0.0002172,2]
[421454000,1777687842000,-213.91,0.00021616,3]
[421453998,1777687842000,-250.0,0.00021616,3]
[421454005,1777687842000,-478.0,0.00022,2]
[421454008,1777687842000,-1722.0,0.00022,2]
[421454009,1777687842000,-562.0,0.00022,2]
[421453988,1777687842000,-200.0,0.00021132,2]
[421453993,1777687842000,-8028.55,0.000215,2]
[421454011,1777687842000,-227.0,0.00022,2]
[421454043,1777687842000,-500.0,0.00023,2]
[421454026,1777687842000,-288.66,0.00022503,2]
[421454045,1777687842000,-339.0,0.00023,2]
[421454076,1777687842000,-150.0,0.00024658,2]
[421454087,1777687842000,-413.0,0.00024658,2]
[421454088,1777687842000,-413.0,0.00024658,2]
[421454080,1777687842000,-413.0,0.00024658,2]
[421454084,1777687842000,-413.0,0.00024658,2]
[421454079,1777687842000,-413.0,0.00024658,2]
[421454083,1777687842000,-413.0,0.00024658,2]
[421454086,1777687842000,-413.0,0.00024658,2]
[421454082,1777687842000,-413.0,0.00024658,2]
[421454078,1777687842000,-413.0,0.00024658,2]
[421454085,1777687842000,-413.0,0.00024658,2]
[421454081,1777687842000,-413.0,0.00024658,2]
[421454077,1777687842000,-413.0,0.00024658,2]
[421454089,1777687842000,-413.0,0.00024658,2]
[421454095,1777687842000,-413.0,0.00024658,2]
[421454091,1777687842000,-413.0,0.00024658,2]
[421454096,1777687842000,-413.0,0.00024658,2]
[421454099,1777687842000,-413.0,0.00024658,2]
[421454098,1777687842000,-413.0,0.00024658,2]
[421454092,1777687842000,-413.0,0.00024658,2]
[421454093,1777687842000,-413.0,0.00024658,2]
[421454097,1777687842000,-413.0,0.00024658,2]
[421454090,1777687842000,-413.0,0.00024658,2]
[421454101,1777687842000,-413.0,0.00024658,2]
[421454102,1777687842000,-413.0,0.00024658,2]
[421454044,1777687842000,-478.0,0.00023,2]
[421454094,1777687842000,-413.0,0.00024658,2]
[421454070,1777687842000,-284.0,0.00024,2]
[421454100,1777687842000,-413.0,0.00024658,2]
[421454072,1777687842000,-1559.3,0.00024312,2]
[421454068,1777687842000,-599.0,0.00024,2]
[421454050,1777687842000,-227.0,0.00023,2]
[421454046,1777687842000,-495.0,0.00023,2]
[421454047,1777687842000,-1722.0,0.00023,2]
[421454049,1777687842000,-599.0,0.00023,2]
[421454052,1777687842000,-2601.0,0.00023,2]
[421454061,1777687842000,-532.0,0.00024,5]
[421454059,1777687842000,-2000.0,0.00023695,2]
[421454056,1777687842000,-152.0,0.00023477,3]
[421454054,1777687842000,-966.62081656,0.0002314,2]
[421454058,1777687842000,-246.46,0.00023553,2]
[421454060,1777687842000,-523.0,0.00024,5]
[421454051,1777687842000,-284.0,0.00023,2]
[421454103,1777687842000,-413.0,0.00024658,2]
[421454055,1777687842000,-3271.14584194,0.00023401,52]
[421454057,1777687842000,-1118.0,0.00023485,2]
[421454067,1777687842000,-562.0,0.00024,2]
[421454063,1777687842000,-339.0,0.00024,2]
[421454073,1777687842000,-819.9,0.00024324,2]
[421454074,1777687842000,-384.23440376,0.0002463,2]
[421454062,1777687842000,-478.0,0.00024,2]
[421454075,1777687842000,-531.0,0.00024657,5]
[421454064,1777687842000,-495.0,0.00024,2]
[421454071,1777687842000,-2601.0,0.00024,2]
[421454066,1777687842000,-1722.0,0.00024,2]
[421454053,1777687842000,-1449.93272138,0.0002314,2]
[421454069,1777687842000,-235.46086277,0.00024,2]
[421454133,1777687843000,-413.0,0.00024658,2]
[421454131,1777687843000,-413.0,0.00024658,2]
[421454128,1777687843000,-413.0,0.00024658,2]
[421454127,1777687843000,-413.0,0.00024658,2]
[421454132,1777687843000,-413.0,0.00024658,2]
[421454126,1777687843000,-413.0,0.00024658,2]
[421454129,1777687843000,-413.0,0.00024658,2]
[421454135,1777687843000,-413.0,0.00024658,2]
[421454136,1777687843000,-413.0,0.00024658,2]
[421454144,1777687843000,-413.0,0.00024658,2]
[421454138,1777687843000,-413.0,0.00024658,2]
[421454146,1777687843000,-413.0,0.00024658,2]
[421454134,1777687843000,-413.0,0.00024658,2]
[421454137,1777687843000,-413.0,0.00024658,2]
[421454141,1777687843000,-413.0,0.00024658,2]
[421454140,1777687843000,-413.0,0.00024658,2]
[421454143,1777687843000,-413.0,0.00024658,2]
[421454130,1777687843000,-413.0,0.00024658,2]
[421454139,1777687843000,-413.0,0.00024658,2]
[421454145,1777687843000,-413.0,0.00024658,2]
[421454124,1777687843000,-413.0,0.00024658,2]
[421454111,1777687843000,-413.0,0.00024658,2]
[421454125,1777687843000,-413.0,0.00024658,2]
[421454142,1777687843000,-413.0,0.00024658,2]
[421454112,1777687843000,-413.0,0.00024658,2]
[421454105,1777687843000,-413.0,0.00024658,2]
[421454108,1777687843000,-413.0,0.00024658,2]
[421454110,1777687843000,-413.0,0.00024658,2]
[421454107,1777687843000,-413.0,0.00024658,2]
[421454109,1777687843000,-413.0,0.00024658,2]
[421454104,1777687843000,-413.0,0.00024658,2]
[421454106,1777687843000,-413.0,0.00024658,2]
[421454118,1777687843000,-413.0,0.00024658,2]
[421454119,1777687843000,-413.0,0.00024658,2]
[421454122,1777687843000,-413.0,0.00024658,2]
[421454117,1777687843000,-413.0,0.00024658,2]
[421454120,1777687843000,-413.0,0.00024658,2]
[421454113,1777687843000,-413.0,0.00024658,2]
[421454116,1777687843000,-413.0,0.00024658,2]
[421454121,1777687843000,-413.0,0.00024658,2]
[421454115,1777687843000,-413.0,0.00024658,2]
[421454114,1777687843000,-413.0,0.00024658,2]
[421454123,1777687843000,-413.0,0.00024658,2]
[421454151,1777687843000,-413.0,0.00024658,2]
[421454170,1777687843000,-929.85,0.00024658,2]
[421454152,1777687843000,-413.0,0.00024658,2]
[421454179,1777687843000,-574.52156229,0.00025,2]
[421454185,1777687843000,-6038.0,0.00025594,2]
[421454177,1777687843000,-513.61279268,0.00025,2]
[421454181,1777687843000,-296.82049767,0.00025,2]
[421454183,1777687843000,-250.0,0.00025205,2]
[421454174,1777687843000,-550.0,0.00025,2]
[421454175,1777687843000,-494.58108134,0.00025,2]
[421454176,1777687843000,-341.04006807,0.00025,2]
[421454184,1777687843000,-150.0,0.00025519,2]
[421454157,1777687843000,-413.0,0.00024658,2]
[421454182,1777687843000,-2619.26625298,0.00025,2]
[421454180,1777687843000,-606.39465111,0.00025,2]
[421454186,1777687843000,-416.0,0.00025594,2]
[421454190,1777687843000,-350.0,0.00025753,2]
[421454189,1777687843000,-152.0,0.00025729,4]
[421454192,1777687843000,-37810.2722445,0.00026027,2]
[421454187,1777687843000,-2000.0,0.00025618,2]
[421454188,1777687843000,-500.0,0.00025618,2]
[421454191,1777687843000,-6639.2254,0.00026027,2]
[421454173,1777687843000,-1101.45,0.00024886,2]
[421454160,1777687843000,-413.0,0.00024658,2]
[421454178,1777687843000,-1727.92189461,0.00025,2]
[421454166,1777687843000,-413.0,0.00024658,2]
[421454148,1777687843000,-413.0,0.00024658,2]
[421454150,1777687843000,-413.0,0.00024658,2]
[421454156,1777687843000,-413.0,0.00024658,2]
[421454147,1777687843000,-413.0,0.00024658,2]
[421454159,1777687843000,-413.0,0.00024658,2]
[421454153,1777687843000,-413.0,0.00024658,2]
[421454149,1777687843000,-413.0,0.00024658,2]
[421454158,1777687843000,-413.0,0.00024658,2]
[421454161,1777687843000,-413.0,0.00024658,2]
[421454154,1777687843000,-413.0,0.00024658,2]
[421454164,1777687843000,-413.0,0.00024658,2]
[421454155,1777687843000,-413.0,0.00024658,2]
[421454162,1777687843000,-413.0,0.00024658,2]
[421454165,1777687843000,-413.0,0.00024658,2]
[421454169,1777687843000,-150.0,0.00024658,2]
[421454171,1777687843000,-928.79,0.00024658,2]
[421454163,1777687843000,-413.0,0.00024658,2]
[421454167,1777687843000,-1000.0,0.00024658,2]
[421454172,1777687843000,-3348.98584327,0.00024672,57]
[421454168,1777687843000,-874.67,0.00024658,2]
[421454201,1777687844000,-1378.11,0.00016682,2]
[421454216,1777688261000,421.41,0.00030137,120]
[421454217,1777688271000,421.41,0.00030137,120]
[421454218,1777688283000,421.4,0.00030137,120]
[421454219,1777688300000,421.4,0.00030137,120]
[421454222,1777688741000,-74.05144065,0.000143,2]
[421454221,1777688741000,-1092.76094676,0.000143,2]
[421454220,1777688741000,-250.0,0.00013,2]
[421454223,1777688748000,500.0,0.00029899,120]
[421454225,1777688846000,-74.05336518,0.00015,2]
[421454224,1777688846000,-313.94704033,0.000143,2]
[421454226,1777688905000,4066.47542563,0.000295,120]
[421454242,1777689032000,-326.66832645,0.00016438,2]
[421454245,1777689032000,-485.4185,0.00017637,2]
[421454243,1777689032000,-350.0,0.00017,2]
[421454240,1777689032000,-229.66832645,0.00016438,2]
[421454241,1777689032000,-322.33167355,0.00016438,2]
[421454239,1777689032000,-248.63167355,0.00016438,2]
[421454233,1777689032000,-137.43252297,0.00016378,2]
[421454237,1777689032000,-290.83875793,0.00016378,2]
[421454236,1777689032000,-605.6100191,0.00016378,2]
[421454231,1777689032000,-162.41759262,0.00016153,2]
[421454228,1777689032000,-225.94663482,0.00015,2]
[421454244,1777689032000,-2726.70314207,0.00017637,2]
[421454238,1777689032000,-266.0,0.00016438,2]
[421454246,1777689032000,-958.35718436,0.00017637,2]
[421454266,1777689032000,-198.0,0.0002,2]
[421454248,1777689032000,-446.39949492,0.00017637,2]
[421454247,1777689032000,-1420.12167865,0.00017637,2]
[421454267,1777689032000,-435.59248583,0.0002,2]
[421454265,1777689032000,-158.0,0.0002,2]
[421454263,1777689032000,-62.21138795,0.0002,2]
[421454260,1777689032000,-330.78861205,0.0002,2]
[421454256,1777689032000,-237.0,0.0002,2]
[421454264,1777689032000,-419.0,0.0002,2]
[421454259,1777689032000,-1205.0,0.0002,2]
[421454257,1777689032000,-346.0,0.0002,2]
[421454255,1777689032000,-334.0,0.0002,2]
[421454250,1777689032000,-478.3,0.0001841,2]
[421454252,1777689032000,-400.0,0.00019,2]
[421454254,1777689032000,-684.47829343,0.0001995,15]
[421454306,1777689038000,-200.0,0.00021127,2]
[421454302,1777689038000,-198.0,0.00021,2]
[421454303,1777689038000,-1820.0,0.00021,2]
[421454305,1777689038000,-200.0,0.00021127,2]
[421454304,1777689038000,-200.0,0.00021127,2]
[421454307,1777689038000,-200.0,0.00021127,2]
[421454309,1777689038000,-200.0,0.00021127,2]
[421454317,1777689038000,-500.0,0.00021842,2]
[421454312,1777689038000,-200.0,0.00021127,2]
[421454313,1777689038000,-5739.15,0.00021132,2]
[421454310,1777689038000,-200.0,0.00021127,2]
[421454315,1777689038000,-355.937,0.00021616,2]
[421454314,1777689038000,-200.0,0.00021465,2]
[421454301,1777689038000,-158.0,0.00021,2]
[421454318,1777689038000,-436.28,0.00021903,2]
[421454319,1777689038000,-2500.0,0.00021937,2]
[421454311,1777689038000,-200.0,0.00021127,2]
[421454297,1777689038000,-346.0,0.00021,2]
[421454295,1777689038000,-334.0,0.00021,2]
[421454299,1777689038000,-393.0,0.00021,2]
[421454280,1777689038000,-1384.40751417,0.0002,2]
[421454283,1777689038000,-478.3,0.00020381,2]
[421454282,1777689038000,-150.0,0.000202,2]
[421454281,1777689038000,-1141.17994907,0.00020198,2]
[421454284,1777689038000,-418.98263072,0.00020639,7]
[421454285,1777689038000,-863.01736928,0.00020639,7]
[421454287,1777689038000,-741.67233161,0.00020639,7]
[421454286,1777689038000,-489.0,0.00020639,7]
[421454300,1777689038000,-419.0,0.00021,2]
[421454289,1777689038000,-606.96816968,0.000209,2]
[421454290,1777689038000,-307.06728329,0.000209,2]
[421454292,1777689038000,-254.18043806,0.000209,2]
[421454291,1777689038000,-2000.0,0.000209,2]
[421454320,1777689038000,-2000.0,0.0002198,2]
[421454293,1777689038000,-27135.14950897,0.000209,2]
[421454294,1777689038000,-450.0,0.00021,2]
[421454298,1777689038000,-1205.0,0.00021,2]
[421454296,1777689038000,-237.0,0.00021,2]
[421454288,1777689038000,-413.32766839,0.00020639,7]
[421454316,1777689038000,-200.0,0.00021795,2]
[421454308,1777689038000,-200.0,0.00021127,2]
[421454323,1777689038000,-346.0,0.00022,2]
[421454353,1777689038000,-150.0,0.00023253,2]
[421454354,1777689038000,-2000.0,0.00023469,2]
[421454356,1777689038000,-557.27064866,0.000238,2]
[421454355,1777689038000,-5825.32151652,0.000238,2]
[421454357,1777689038000,-1094.0,0.000238,2]
[421454360,1777689038000,-1511.06567882,0.000238,2]
[421454363,1777689038000,-237.0,0.00024,2]
[421454358,1777689038000,-514.38260678,0.000238,2]
[421454352,1777689038000,-502.0,0.00023151,2]
[421454361,1777689038000,-37574.3083,0.00023949,2]
[421454365,1777689038000,-1205.0,0.00024,2]
[421454367,1777689038000,-419.0,0.00024,2]
[421454366,1777689038000,-393.0,0.00024,2]
[421454364,1777689038000,-346.0,0.00024,2]
[421454369,1777689038000,-198.0,0.00024,2]
[421454368,1777689038000,-158.0,0.00024,2]
[421454370,1777689038000,-1820.0,0.00024,2]
[421454321,1777689038000,-334.0,0.00022,2]
[421454362,1777689038000,-334.0,0.00024,2]
[421454350,1777689038000,-198.0,0.00023,2]
[421454359,1777689038000,-526.50344134,0.000238,2]
[421454349,1777689038000,-158.0,0.00023,2]
[421454322,1777689038000,-237.0,0.00022,2]
[421454324,1777689038000,-1205.0,0.00022,2]
[421454347,1777689038000,-393.0,0.00023,2]
[421454326,1777689038000,-419.0,0.00022,2]
[421454329,1777689038000,-198.0,0.00022,2]
[421454327,1777689038000,-158.0,0.00022,2]
[421454337,1777689038000,-1326.69682518,0.00022093,2]
[421454333,1777689038000,-3673.30317482,0.00022093,2]
[421454331,1777689038000,-1820.0,0.00022,2]
[421454325,1777689038000,-393.0,0.00022,2]
[421454341,1777689038000,-500.0,0.00023,2]
[421454344,1777689038000,-237.0,0.00023,2]
[421454343,1777689038000,-334.0,0.00023,2]
[421454338,1777689038000,-478.3,0.00022353,2]
[421454346,1777689038000,-1205.0,0.00023,2]
[421454345,1777689038000,-346.0,0.00023,2]
[421454348,1777689038000,-419.0,0.00023,2]
[421454351,1777689038000,-1820.0,0.00023,2]